[Event "Titled Tuesday Blitz March 15 Late 2022"]
[White "Brunner, Nicolas"]
[Black "Palachev, Petr"]
[WhiteFideId "620246"]
[BlackFideId "24129003"]
[WhiteElo "2372"]
[BlackElo "2339"]
[Result "1/2-1/2"]
[Round "02"]
[TimeControl "180+1"]
[Date "2022.03.16"]
[WhiteClock "0:00:14"]
[BlackClock "0:00:06"]

1. d4 {[%clk 0:02:58]}  Nf6 {[%clk 0:02:59]} 2. c4 {[%clk 0:02:58]}  e6 {[%clk 0:02:59]} 3. g3 {[%clk 0:02:58]}  d5 {[%clk 0:02:58]} 4. Bg2 {[%clk 0:02:57]}  dxc4 {[%clk 0:02:59]} 5. Nf3 {[%clk 0:02:56]}  a6 {[%clk 0:02:58]} 6. O-O {[%clk 0:02:52]}  Nc6 {[%clk 0:02:59]} 7. Nc3 {[%clk 0:02:44]}  Rb8 {[%clk 0:02:57]} 8. e4 {[%clk 0:02:42]}  Be7 {[%clk 0:02:57]} 9. Qe2 {[%clk 0:02:41]}  b5 {[%clk 0:02:56]} 10. Rd1 {[%clk 0:02:39]}  O-O {[%clk 0:02:47]} 11. d5 {[%clk 0:02:37]}  exd5 {[%clk 0:02:46]} 12. e5 {[%clk 0:02:37]}  d4 {[%clk 0:02:45]} 13. exf6 {[%clk 0:02:36]}  Bxf6 {[%clk 0:02:46]} 14. Ne4 {[%clk 0:02:33]}  Be7 {[%clk 0:02:43]} 15. Bg5 {[%clk 0:02:31]}  d3 {[%clk 0:02:03]} 16. Qd2 {[%clk 0:02:26]}  Bg4 {[%clk 0:01:54]} 17. Bxe7 {[%clk 0:02:23]}  Qxe7 {[%clk 0:01:53]} 18. Re1 {[%clk 0:02:13]}  Qb4 {[%clk 0:01:46]} 19. Rac1 {[%clk 0:01:54]}  Bxf3 {[%clk 0:01:42]} 20. Bxf3 {[%clk 0:01:51]}  Rbd8 {[%clk 0:01:29]} 21. b3 {[%clk 0:01:48]}  f5 {[%clk 0:01:15]} 22. Qxb4 {[%clk 0:01:44]}  Nxb4 {[%clk 0:01:15]} 23. Nd2 {[%clk 0:01:44]}  Nxa2 {[%clk 0:01:14]} 24. Ra1 {[%clk 0:01:35]}  Nb4 {[%clk 0:01:14]} 25. bxc4 {[%clk 0:01:32]}  Nc2 {[%clk 0:01:14]} 26. cxb5 {[%clk 0:01:24]}  axb5 {[%clk 0:01:15]} 27. Bc6 {[%clk 0:01:06]}  b4 {[%clk 0:01:06]} 28. Ba4 {[%clk 0:01:06]}  Nxa1 {[%clk 0:01:03]} 29. Rxa1 {[%clk 0:01:06]}  Ra8 {[%clk 0:00:48]} 30. Bb3+ {[%clk 0:01:05]}  Kh8 {[%clk 0:00:48]} 31. Rc1 {[%clk 0:01:06]}  Rfe8 {[%clk 0:00:43]} 32. Rxc7 {[%clk 0:01:03]}  Re2 {[%clk 0:00:43]} 33. Nf3 {[%clk 0:00:56]}  Rb2 {[%clk 0:00:42]} 34. Bd5 {[%clk 0:00:48]}  Rb8 {[%clk 0:00:34]} 35. Rd7 {[%clk 0:00:35]}  b3 {[%clk 0:00:16]} 36. Be6 {[%clk 0:00:34]}  Re2 {[%clk 0:00:14]} 37. Bxb3 {[%clk 0:00:27]}  h6 {[%clk 0:00:08]} 38. Bc4 {[%clk 0:00:26]}  Rb1+ {[%clk 0:00:04]} 39. Kg2 {[%clk 0:00:25]}  Rbb2 {[%clk 0:00:04]} 40. Nh4 {[%clk 0:00:16]}  Rxf2+ {[%clk 0:00:05]} 41. Kg1 {[%clk 0:00:15]}  Rfd2 {[%clk 0:00:04]} 42. Ng6+ {[%clk 0:00:15]}  Kh7 {[%clk 0:00:05]} 43. Nf8+ {[%clk 0:00:15]}  Kh8 {[%clk 0:00:05]} 44. Ng6+ {[%clk 0:00:15]}  Kh7 {[%clk 0:00:06]} 45. Nf8+ {[%clk 0:00:14]}  Kh8 {[%clk 0:00:06]} 46. Ng6+ {[%clk 0:00:14]} 1/2-1/2


[Site "https://www.chess.com"]

[Event "Titled Tuesday Blitz March 15 Late 2022"]
[White "Bryakin, Mikhail"]
[Black "Nakamura, Hikaru"]
[WhiteFideId "4165314"]
[BlackFideId "2016192"]
[WhiteElo "2417"]
[BlackElo "2850"]
[Result "0-1"]
[Round "02"]
[TimeControl "180+1"]
[Date "2022.03.15"]
[WhiteClock "0:00:06"]
[BlackClock "0:00:31"]

1. d4 {[%clk 0:02:59]}  f5 {[%clk 0:02:59]} 2. Bf4 {[%clk 0:03:00]}  d6 {[%clk 0:02:58]} 3. h3 {[%clk 0:02:58]}  Nf6 {[%clk 0:02:58]} 4. e3 {[%clk 0:02:58]}  g6 {[%clk 0:02:57]} 5. Nf3 {[%clk 0:02:59]}  Bg7 {[%clk 0:02:58]} 6. c3 {[%clk 0:02:59]}  O-O {[%clk 0:02:58]} 7. Nbd2 {[%clk 0:02:59]}  c6 {[%clk 0:02:58]} 8. Bh2 {[%clk 0:02:59]}  Nbd7 {[%clk 0:02:54]} 9. Be2 {[%clk 0:02:57]}  Ne4 {[%clk 0:02:52]} 10. O-O {[%clk 0:02:57]}  Ndf6 {[%clk 0:02:52]} 11. a4 {[%clk 0:02:55]}  Kh8 {[%clk 0:02:50]} 12. Nxe4 {[%clk 0:02:54]}  fxe4 {[%clk 0:02:49]} 13. Nd2 {[%clk 0:02:54]}  Bh6 {[%clk 0:02:49]} 14. Qc2 {[%clk 0:02:53]}  d5 {[%clk 0:02:46]} 15. Rae1 {[%clk 0:02:52]}  Bf5 {[%clk 0:02:46]} 16. Bd1 {[%clk 0:02:51]}  Qd7 {[%clk 0:02:45]} 17. Qb3 {[%clk 0:02:47]}  Rae8 {[%clk 0:02:44]} 18. f4 {[%clk 0:02:44]}  Bg7 {[%clk 0:02:42]} 19. g4 {[%clk 0:02:42]}  Be6 {[%clk 0:02:42]} 20. Rf2 {[%clk 0:02:36]}  Qc8 {[%clk 0:02:42]} 21. Bg3 {[%clk 0:02:27]}  Bg8 {[%clk 0:02:34]} 22. Ref1 {[%clk 0:02:26]}  e6 {[%clk 0:02:25]} 23. Be2 {[%clk 0:02:25]}  c5 {[%clk 0:02:23]} 24. a5 {[%clk 0:02:21]}  Rf7 {[%clk 0:02:17]} 25. Rh2 {[%clk 0:02:21]}  Ref8 {[%clk 0:01:51]} 26. h4 {[%clk 0:02:16]}  h5 {[%clk 0:01:48]} 27. g5 {[%clk 0:02:15]}  Ne8 {[%clk 0:01:48]} 28. Ra1 {[%clk 0:02:04]}  Nd6 {[%clk 0:01:47]} 29. Nf1 {[%clk 0:02:04]}  Nf5 {[%clk 0:01:45]} 30. Bf2 {[%clk 0:02:03]}  cxd4 {[%clk 0:01:45]} 31. cxd4 {[%clk 0:02:03]}  Rc7 {[%clk 0:01:45]} 32. a6 {[%clk 0:02:01]}  b6 {[%clk 0:01:41]} 33. Ng3 {[%clk 0:01:43]}  Nd6 {[%clk 0:01:40]} 34. Kg2 {[%clk 0:01:36]}  Rff7 {[%clk 0:01:37]} 35. Rhh1 {[%clk 0:01:36]}  Rc6 {[%clk 0:01:38]} 36. Bb5 {[%clk 0:01:29]}  Rc2 {[%clk 0:01:35]} 37. Rhd1 {[%clk 0:01:17]}  Rfc7 {[%clk 0:01:34]} 38. Be2 {[%clk 0:01:18]}  Bf7 {[%clk 0:01:30]} 39. Qb4 {[%clk 0:01:13]}  Bf8 {[%clk 0:01:29]} 40. Qb3 {[%clk 0:01:12]}  Nf5 {[%clk 0:01:19]} 41. Nxf5 {[%clk 0:01:07]}  Rxe2 {[%clk 0:01:19]} 42. Ng3 {[%clk 0:01:05]}  Rec2 {[%clk 0:01:19]} 43. Qb5 {[%clk 0:00:38]}  Be8 {[%clk 0:01:12]} 44. Qb3 {[%clk 0:00:31]}  R7c4 {[%clk 0:01:12]} 45. Rab1 {[%clk 0:00:12]}  Qxa6 {[%clk 0:01:08]} 46. Ra1 {[%clk 0:00:12]}  Qb7 {[%clk 0:01:08]} 47. Qa2 {[%clk 0:00:07]}  a5 {[%clk 0:01:07]} 48. Rab1 {[%clk 0:00:06]}  Qc8 {[%clk 0:01:02]} 49. Qb3 {[%clk 0:00:06]}  b5 {[%clk 0:01:02]} 50. Qa2 {[%clk 0:00:06]}  a4 {[%clk 0:01:01]} 51. Qa1 {[%clk 0:00:06]}  Rc6 {[%clk 0:01:01]} 52. Re1 {[%clk 0:00:05]}  b4 {[%clk 0:00:54]} 53. Re2 {[%clk 0:00:06]}  Rxe2 {[%clk 0:00:53]} 54. Nxe2 {[%clk 0:00:07]}  Rc2 {[%clk 0:00:54]} 55. Re1 {[%clk 0:00:07]}  Bb5 {[%clk 0:00:53]} 56. Ng3 {[%clk 0:00:07]}  Qc4 {[%clk 0:00:52]} 57. Qd1 {[%clk 0:00:07]}  Be8 {[%clk 0:00:48]} 58. f5 {[%clk 0:00:08]}  exf5 {[%clk 0:00:48]} 59. Ne2 {[%clk 0:00:08]}  Rxb2 {[%clk 0:00:48]} 60. Nf4 {[%clk 0:00:09]}  a3 {[%clk 0:00:47]} 61. Qa1 {[%clk 0:00:06]}  b3 {[%clk 0:00:43]} 62. Rc1 {[%clk 0:00:07]}  Rc2 {[%clk 0:00:43]} 63. Rxc2 {[%clk 0:00:06]}  Qxc2 {[%clk 0:00:44]} 64. Qf1 {[%clk 0:00:06]}  Qc4 {[%clk 0:00:41]} 65. Qe1 {[%clk 0:00:07]}  b2 {[%clk 0:00:38]} 66. Qa5 {[%clk 0:00:07]}  b1=Q {[%clk 0:00:38]} 67. Qd8 {[%clk 0:00:07]}  Qc6 {[%clk 0:00:31]} 68. Ne6 {[%clk 0:00:06]}  Qxe6 {[%clk 0:00:31]} 0-1


[Site "https://www.chess.com"]

[Event "Titled Tuesday Blitz March 15 Late 2022"]
[White "Ciolek, Andreas"]
[Black "Chyngyz, Sultai"]
[WhiteFideId "12906727"]
[BlackFideId "13803158"]
[WhiteElo "2215"]
[BlackElo "1365"]
[Result "0-1"]
[Round "02"]
[TimeControl "180+1"]
[Date "2022.03.16"]
[WhiteClock "0:00:05"]
[BlackClock "0:00:25"]

1. d4 {[%clk 0:03:00]}  Nf6 {[%clk 0:02:55]} 2. Nf3 {[%clk 0:03:01]}  g6 {[%clk 0:02:54]} 3. g3 {[%clk 0:03:01]}  Bg7 {[%clk 0:02:53]} 4. Bg2 {[%clk 0:03:00]}  O-O {[%clk 0:02:51]} 5. O-O {[%clk 0:03:00]}  d6 {[%clk 0:02:51]} 6. b3 {[%clk 0:03:00]}  c5 {[%clk 0:02:50]} 7. Bb2 {[%clk 0:02:58]}  cxd4 {[%clk 0:02:49]} 8. Nxd4 {[%clk 0:02:58]}  Nc6 {[%clk 0:02:47]} 9. Nxc6 {[%clk 0:02:57]}  bxc6 {[%clk 0:02:48]} 10. Bxc6 {[%clk 0:02:57]}  Bh3 {[%clk 0:02:48]} 11. Bg2 {[%clk 0:02:54]}  Bxg2 {[%clk 0:02:46]} 12. Kxg2 {[%clk 0:02:54]}  Rc8 {[%clk 0:02:45]} 13. c4 {[%clk 0:02:47]}  h5 {[%clk 0:02:39]} 14. Nc3 {[%clk 0:02:43]}  h4 {[%clk 0:02:39]} 15. Rb1 {[%clk 0:02:37]}  Qd7 {[%clk 0:02:23]} 16. Nd5 {[%clk 0:02:32]}  h3+ {[%clk 0:02:22]} 17. Kg1 {[%clk 0:02:27]}  Qb7 {[%clk 0:02:22]} 18. Nxf6+ {[%clk 0:02:21]}  Bxf6 {[%clk 0:02:21]} 19. f3 {[%clk 0:02:20]}  Qb6+ {[%clk 0:02:15]} 20. Kh1 {[%clk 0:02:16]}  Bxb2 {[%clk 0:02:15]} 21. Rxb2 {[%clk 0:02:17]}  Rxc4 {[%clk 0:02:15]} 22. Rc2 {[%clk 0:01:38]}  Rc5 {[%clk 0:01:58]} 23. Rxc5 {[%clk 0:01:25]}  Qxc5 {[%clk 0:01:59]} 24. Qc1 {[%clk 0:01:25]}  Qe5 {[%clk 0:01:55]} 25. Qc2 {[%clk 0:01:18]}  Kh7 {[%clk 0:01:52]} 26. e4 {[%clk 0:01:15]}  e6 {[%clk 0:01:47]} 27. Rd1 {[%clk 0:01:11]}  d5 {[%clk 0:01:39]} 28. exd5 {[%clk 0:01:09]}  Rc8 {[%clk 0:01:29]} 29. Qd2 {[%clk 0:01:01]}  exd5 {[%clk 0:01:27]} 30. Re1 {[%clk 0:01:00]}  Qf5 {[%clk 0:01:22]} 31. f4 {[%clk 0:00:24]}  Rc2 {[%clk 0:01:21]} 32. Qd4 {[%clk 0:00:18]}  Rxa2 {[%clk 0:01:19]} 33. b4 {[%clk 0:00:17]}  Qc2 {[%clk 0:01:17]} 34. Qg1 {[%clk 0:00:16]}  d4 {[%clk 0:01:14]} 35. Rc1 {[%clk 0:00:15]}  Qg2+ {[%clk 0:01:10]} 36. Qxg2 {[%clk 0:00:15]}  hxg2+ {[%clk 0:01:11]} 37. Kg1 {[%clk 0:00:16]}  d3 {[%clk 0:01:12]} 38. Rd1 {[%clk 0:00:16]}  Rb2 {[%clk 0:01:01]} 39. Rxd3 {[%clk 0:00:15]}  Rxb4 {[%clk 0:01:02]} 40. Ra3 {[%clk 0:00:12]}  Rb2 {[%clk 0:00:59]} 41. Rxa7 {[%clk 0:00:12]}  Kg7 {[%clk 0:00:58]} 42. Ra6 {[%clk 0:00:09]}  Kh6 {[%clk 0:00:58]} 43. h3 {[%clk 0:00:07]}  Kh5 {[%clk 0:00:57]} 44. Kh2 {[%clk 0:00:07]}  f5 {[%clk 0:00:53]} 45. Ra8 {[%clk 0:00:08]}  Kh6 {[%clk 0:00:51]} 46. Ra7 {[%clk 0:00:07]}  Re2 {[%clk 0:00:48]} 47. g4 {[%clk 0:00:07]}  fxg4 {[%clk 0:00:47]} 48. hxg4 {[%clk 0:00:07]}  Rf2 {[%clk 0:00:44]} 49. Kh3 {[%clk 0:00:04]}  g1=N+ {[%clk 0:00:27]} 50. Kg3 {[%clk 0:00:04]}  Rf3+ {[%clk 0:00:26]} 51. Kh4 {[%clk 0:00:05]}  Rh3# {[%clk 0:00:25]} 0-1


[Site "https://www.chess.com"]

[Event "Titled Tuesday Blitz March 15 Late 2022"]
[White "Dylag, Emilia"]
[Black "Logozar, Elijah"]
[WhiteFideId "21805172"]
[BlackFideId "30963788"]
[WhiteElo "1932"]
[BlackElo "2527"]
[Result "0-1"]
[Round "02"]
[TimeControl "180+1"]
[Date "2022.03.16"]
[WhiteClock "0:00:04"]
[BlackClock "0:02:35"]

1. Nf3 {[%clk 0:00:12]}  g5 {[%clk 0:02:55]} 2. h3 {[%clk 0:00:11]}  e6 {[%clk 0:02:54]} 3. d4 {[%clk 0:00:11]}  Bg7 {[%clk 0:02:54]} 4. c4 {[%clk 0:00:11]}  h6 {[%clk 0:02:54]} 5. Nc3 {[%clk 0:00:12]}  b6 {[%clk 0:02:54]} 6. e4 {[%clk 0:00:12]}  Bb7 {[%clk 0:02:54]} 7. Bd3 {[%clk 0:00:13]}  d6 {[%clk 0:02:54]} 8. Be3 {[%clk 0:00:13]}  Nd7 {[%clk 0:02:54]} 9. Qc2 {[%clk 0:00:13]}  c5 {[%clk 0:02:55]} 10. O-O-O {[%clk 0:00:13]}  a6 {[%clk 0:02:50]} 11. dxc5 {[%clk 0:00:13]}  Nxc5 {[%clk 0:02:50]} 12. Bxc5 {[%clk 0:00:12]}  bxc5 {[%clk 0:02:50]} 13. e5 {[%clk 0:00:11]}  Bxf3 {[%clk 0:02:48]} 14. gxf3 {[%clk 0:00:12]}  Bxe5 {[%clk 0:02:48]} 15. Be4 {[%clk 0:00:12]}  Rb8 {[%clk 0:02:47]} 16. Bc6+ {[%clk 0:00:11]}  Kf8 {[%clk 0:02:47]} 17. h4 {[%clk 0:00:11]}  Qf6 {[%clk 0:02:41]} 18. Rd3 {[%clk 0:00:08]}  Ne7 {[%clk 0:02:40]} 19. Be4 {[%clk 0:00:08]}  gxh4 {[%clk 0:02:35]} 20. Rg1 {[%clk 0:00:07]}  Rg8 {[%clk 0:02:35]} 21. Rxg8+ {[%clk 0:00:07]}  Kxg8 {[%clk 0:02:35]} 22. Kb1 {[%clk 0:00:04]}  Kh8 {[%clk 0:02:35]} 0-1


[Site "https://www.chess.com"]

[Event "Titled Tuesday Blitz March 15 Late 2022"]
[White "Eisen, Zane"]
[Black "Mikhalsky, Vladimir"]
[WhiteFideId "2098750"]
[BlackFideId "14144352"]
[WhiteElo "2017"]
[BlackElo "2301"]
[Result "0-1"]
[Round "02"]
[TimeControl "180+1"]
[Date "2022.03.16"]
[WhiteClock "0:01:04"]
[BlackClock "0:01:08"]

1. e4 {[%clk 0:03:00]}  g6 {[%clk 0:02:53]} 2. d4 {[%clk 0:02:57]}  Bg7 {[%clk 0:02:50]} 3. f4 {[%clk 0:02:50]}  d6 {[%clk 0:02:50]} 4. Nf3 {[%clk 0:02:50]}  Nf6 {[%clk 0:02:49]} 5. Nc3 {[%clk 0:02:49]}  O-O {[%clk 0:02:49]} 6. Bd3 {[%clk 0:02:47]}  Na6 {[%clk 0:02:46]} 7. Be3 {[%clk 0:02:45]}  Nb4 {[%clk 0:02:43]} 8. Be2 {[%clk 0:02:42]}  Bg4 {[%clk 0:02:26]} 9. a3 {[%clk 0:02:30]}  Nc6 {[%clk 0:02:22]} 10. d5 {[%clk 0:02:28]}  Nb8 {[%clk 0:02:20]} 11. O-O {[%clk 0:02:28]}  c5 {[%clk 0:02:19]} 12. Bc4 {[%clk 0:02:17]}  Na6 {[%clk 0:02:07]} 13. h3 {[%clk 0:02:14]}  Bd7 {[%clk 0:02:02]} 14. g4 {[%clk 0:02:10]}  b5 {[%clk 0:02:00]} 15. g5 {[%clk 0:01:59]}  Nxe4 {[%clk 0:01:51]} 16. Nxe4 {[%clk 0:01:53]}  bxc4 {[%clk 0:01:52]} 17. c3 {[%clk 0:01:53]}  Bxh3 {[%clk 0:01:50]} 18. Nh4 {[%clk 0:01:47]}  Bxf1 {[%clk 0:01:47]} 19. Qxf1 {[%clk 0:01:47]}  Rb8 {[%clk 0:01:46]} 20. Qxc4 {[%clk 0:01:41]}  Qc8 {[%clk 0:01:39]} 21. f5 {[%clk 0:01:33]}  gxf5 {[%clk 0:01:34]} 22. Ng3 {[%clk 0:01:33]}  e6 {[%clk 0:01:28]} 23. Nh5 {[%clk 0:01:20]}  Rxb2 {[%clk 0:01:16]} 24. Rf1 {[%clk 0:01:09]}  Nc7 {[%clk 0:01:13]} 25. dxe6 {[%clk 0:01:06]}  Qxe6 {[%clk 0:01:10]} 26. Qf4 {[%clk 0:01:04]}  Nd5 {[%clk 0:01:08]} 0-1


[Site "https://www.chess.com"]

[Event "Titled Tuesday Blitz March 15 Late 2022"]
[White "Eynullayev, Atilla"]
[Black "Prohorov, Olexandr"]
[WhiteFideId "13413570"]
[BlackFideId "14105578"]
[WhiteElo "1979"]
[BlackElo "1993"]
[Result "1-0"]
[Round "02"]
[TimeControl "180+1"]
[Date "2022.03.16"]
[WhiteClock "0:00:06"]
[BlackClock "0:00:01"]

1. Nf3 {[%clk 0:02:48]}  g6 {[%clk 0:02:46]} 2. g3 {[%clk 0:02:47]}  Bg7 {[%clk 0:02:45]} 3. Bg2 {[%clk 0:02:47]}  f5 {[%clk 0:02:44]} 4. O-O {[%clk 0:02:47]}  Nf6 {[%clk 0:02:44]} 5. b3 {[%clk 0:02:46]}  O-O {[%clk 0:02:44]} 6. Bb2 {[%clk 0:02:47]}  d6 {[%clk 0:02:45]} 7. c4 {[%clk 0:02:40]}  Nc6 {[%clk 0:02:45]} 8. Nc3 {[%clk 0:02:41]}  Qe8 {[%clk 0:02:44]} 9. Nd5 {[%clk 0:02:35]}  Nxd5 {[%clk 0:02:37]} 10. Bxg7 {[%clk 0:02:34]}  Kxg7 {[%clk 0:02:37]} 11. cxd5 {[%clk 0:02:35]}  Ne5 {[%clk 0:02:38]} 12. Nd4 {[%clk 0:02:35]}  Bd7 {[%clk 0:02:34]} 13. Ne6+ {[%clk 0:02:18]}  Bxe6 {[%clk 0:02:29]} 14. dxe6 {[%clk 0:02:19]}  c6 {[%clk 0:02:19]} 15. b4 {[%clk 0:01:53]}  Qc8 {[%clk 0:01:44]} 16. Qb3 {[%clk 0:01:51]}  Rf6 {[%clk 0:01:41]} 17. d4 {[%clk 0:01:52]}  Ng4 {[%clk 0:01:39]} 18. h3 {[%clk 0:01:52]}  Nh6 {[%clk 0:01:40]} 19. d5 {[%clk 0:01:53]}  f4 {[%clk 0:01:33]} 20. Rac1 {[%clk 0:01:49]}  c5 {[%clk 0:01:25]} 21. bxc5 {[%clk 0:01:48]}  dxc5 {[%clk 0:01:26]} 22. d6 {[%clk 0:01:48]}  Rb8 {[%clk 0:00:59]} 23. d7 {[%clk 0:01:03]}  Qc7 {[%clk 0:00:57]} 24. Qd5 {[%clk 0:00:45]}  b6 {[%clk 0:00:56]} 25. g4 {[%clk 0:00:44]}  Ng8 {[%clk 0:00:51]} 26. Rfd1 {[%clk 0:00:43]}  Rd8 {[%clk 0:00:50]} 27. a4 {[%clk 0:00:40]}  h5 {[%clk 0:00:46]} 28. g5 {[%clk 0:00:38]}  Rf5 {[%clk 0:00:46]} 29. Qb7 {[%clk 0:00:14]}  Qe5 {[%clk 0:00:35]} 30. h4 {[%clk 0:00:13]}  f3 {[%clk 0:00:32]} 31. exf3 {[%clk 0:00:12]}  Qf4 {[%clk 0:00:29]} 32. Qc8 {[%clk 0:00:11]}  Rff8 {[%clk 0:00:28]} 33. Qc6 {[%clk 0:00:10]}  Qxh4 {[%clk 0:00:28]} 34. Qe4 {[%clk 0:00:10]}  Qxg5 {[%clk 0:00:27]} 35. a5 {[%clk 0:00:10]}  h4 {[%clk 0:00:26]} 36. Kh2 {[%clk 0:00:09]}  Nf6 {[%clk 0:00:27]} 37. Qe3 {[%clk 0:00:08]}  Qf5 {[%clk 0:00:24]} 38. Bh3 {[%clk 0:00:08]}  Qh5 {[%clk 0:00:22]} 39. axb6 {[%clk 0:00:08]}  axb6 {[%clk 0:00:22]} 40. Rb1 {[%clk 0:00:09]}  Nd5 {[%clk 0:00:18]} 41. Qe4 {[%clk 0:00:06]}  Nf4 {[%clk 0:00:15]} 42. Bg4 {[%clk 0:00:06]}  Qg5 {[%clk 0:00:14]} 43. Rxb6 {[%clk 0:00:07]}  h3 {[%clk 0:00:13]} 44. Rc6 {[%clk 0:00:07]}  Rh8 {[%clk 0:00:13]} 45. Rc1 {[%clk 0:00:07]}  Qh4 {[%clk 0:00:13]} 46. Qe3 {[%clk 0:00:07]}  Ng2 {[%clk 0:00:12]} 47. Qe5+ {[%clk 0:00:06]}  Kh7 {[%clk 0:00:13]} 48. Qg3 {[%clk 0:00:07]}  Qg5 {[%clk 0:00:11]} 49. R1xc5 {[%clk 0:00:07]}  Qf6 {[%clk 0:00:11]} 50. Rc8 {[%clk 0:00:06]}  Kg7 {[%clk 0:00:10]} 51. Rxd8 {[%clk 0:00:07]}  Rxd8 {[%clk 0:00:10]} 52. Rc8 {[%clk 0:00:08]}  Qf8 {[%clk 0:00:09]} 53. Qe5+ {[%clk 0:00:08]}  Kh7 {[%clk 0:00:08]} 54. Qc7 {[%clk 0:00:08]}  Ne1 {[%clk 0:00:02]} 55. Rxd8 {[%clk 0:00:07]}  Qf6 {[%clk 0:00:02]} 56. Rf8 {[%clk 0:00:04]}  Qxf8 {[%clk 0:00:02]} 57. d8=Q {[%clk 0:00:05]}  Qf6 {[%clk 0:00:01]} 58. Qdxe7+ {[%clk 0:00:06]} 1-0


[Site "https://www.chess.com"]

[Event "Titled Tuesday Blitz March 15 Late 2022"]
[White "Fishbein, Alexander"]
[Black "Yoo, Christopher Woojin"]
[WhiteFideId "2000377"]
[BlackFideId "30909694"]
[WhiteElo "2442"]
[BlackElo "2105"]
[Result "0-1"]
[Round "02"]
[TimeControl "180+1"]
[Date "2022.03.15"]
[WhiteClock "0:00:40"]
[BlackClock "0:01:07"]

1. e4 {[%clk 0:02:56]}  e6 {[%clk 0:02:52]} 2. d4 {[%clk 0:02:55]}  d5 {[%clk 0:02:52]} 3. exd5 {[%clk 0:02:55]}  exd5 {[%clk 0:02:53]} 4. Nf3 {[%clk 0:02:56]}  Nf6 {[%clk 0:02:53]} 5. Bd3 {[%clk 0:02:55]}  Bd6 {[%clk 0:02:53]} 6. Qe2+ {[%clk 0:02:55]}  Qe7 {[%clk 0:02:53]} 7. Qxe7+ {[%clk 0:02:55]}  Kxe7 {[%clk 0:02:51]} 8. O-O {[%clk 0:02:54]}  Re8 {[%clk 0:02:39]} 9. Re1+ {[%clk 0:02:54]}  Kf8 {[%clk 0:02:38]} 10. Rxe8+ {[%clk 0:02:54]}  Kxe8 {[%clk 0:02:39]} 11. Nc3 {[%clk 0:02:54]}  c6 {[%clk 0:02:39]} 12. Bg5 {[%clk 0:02:51]}  Nbd7 {[%clk 0:02:39]} 13. Re1+ {[%clk 0:02:50]}  Kf8 {[%clk 0:02:39]} 14. Ne5 {[%clk 0:02:49]}  h6 {[%clk 0:02:39]} 15. Bf4 {[%clk 0:02:47]}  Be7 {[%clk 0:02:28]} 16. h3 {[%clk 0:02:45]}  Nxe5 {[%clk 0:02:26]} 17. Bxe5 {[%clk 0:02:44]}  Bd7 {[%clk 0:02:20]} 18. Ne2 {[%clk 0:02:42]}  Re8 {[%clk 0:02:18]} 19. Ng3 {[%clk 0:02:39]}  g6 {[%clk 0:02:12]} 20. Re2 {[%clk 0:02:37]}  h5 {[%clk 0:02:10]} 21. Nf1 {[%clk 0:02:23]}  Be6 {[%clk 0:02:09]} 22. Nh2 {[%clk 0:02:21]}  Nd7 {[%clk 0:02:09]} 23. Bf4 {[%clk 0:02:20]}  Bf6 {[%clk 0:02:07]} 24. c3 {[%clk 0:02:16]}  g5 {[%clk 0:02:06]} 25. Bd6+ {[%clk 0:02:09]}  Kg7 {[%clk 0:02:05]} 26. Nf3 {[%clk 0:02:08]}  g4 {[%clk 0:02:03]} 27. hxg4 {[%clk 0:02:07]}  hxg4 {[%clk 0:02:04]} 28. Ne5 {[%clk 0:02:02]}  Nxe5 {[%clk 0:01:59]} 29. Bxe5 {[%clk 0:01:59]}  Rh8 {[%clk 0:01:34]} 30. Re3 {[%clk 0:01:45]}  Bxe5 {[%clk 0:01:31]} 31. Rxe5 {[%clk 0:01:45]}  Kf6 {[%clk 0:01:30]} 32. f4 {[%clk 0:01:28]}  gxf3 {[%clk 0:01:26]} 33. gxf3 {[%clk 0:01:28]}  c5 {[%clk 0:01:27]} 34. f4 {[%clk 0:00:57]}  cxd4 {[%clk 0:01:24]} 35. cxd4 {[%clk 0:00:57]}  Rh4 {[%clk 0:01:17]} 36. f5 {[%clk 0:00:57]}  Bd7 {[%clk 0:01:17]} 37. Rxd5 {[%clk 0:00:55]}  Bc6 {[%clk 0:01:16]} 38. Rd8 {[%clk 0:00:50]}  Ke7 {[%clk 0:01:15]} 39. Ra8 {[%clk 0:00:47]}  Rxd4 {[%clk 0:01:14]} 40. Bf1 {[%clk 0:00:44]}  a6 {[%clk 0:01:11]} 41. b3 {[%clk 0:00:44]}  Rg4+ {[%clk 0:01:07]} 42. Kh2 {[%clk 0:00:42]}  Rf4 {[%clk 0:01:07]} 43. Bd3 {[%clk 0:00:40]}  Rf2+ {[%clk 0:01:07]} 44. Kg3 {[%clk 0:00:40]}  Rf3+ {[%clk 0:01:07]} 0-1


[Site "https://www.chess.com"]

[Event "Titled Tuesday Blitz March 15 Late 2022"]
[White "Goryachkina, Aleksandra"]
[Black "Maghsoodloo, Parham"]
[WhiteFideId "4147103"]
[BlackFideId "12539929"]
[WhiteElo "2426"]
[BlackElo "2630"]
[Result "0-1"]
[Round "02"]
[TimeControl "180+1"]
[Date "2022.03.15"]
[WhiteClock "0:00:01"]
[BlackClock "0:00:53"]

1. e4 {[%clk 0:02:59]}  e5 {[%clk 0:02:59]} 2. Nf3 {[%clk 0:02:59]}  Nc6 {[%clk 0:02:59]} 3. d4 {[%clk 0:02:59]}  exd4 {[%clk 0:02:59]} 4. Nxd4 {[%clk 0:02:59]}  Nf6 {[%clk 0:02:58]} 5. Nxc6 {[%clk 0:02:59]}  bxc6 {[%clk 0:02:59]} 6. e5 {[%clk 0:02:59]}  Qe7 {[%clk 0:02:58]} 7. Qe2 {[%clk 0:02:59]}  Nd5 {[%clk 0:02:59]} 8. g3 {[%clk 0:02:59]}  a5 {[%clk 0:02:56]} 9. Bg2 {[%clk 0:02:56]}  Ba6 {[%clk 0:02:55]} 10. c4 {[%clk 0:02:52]}  Nb6 {[%clk 0:02:32]} 11. b3 {[%clk 0:02:44]}  Qe6 {[%clk 0:02:27]} 12. O-O {[%clk 0:02:33]}  Bc5 {[%clk 0:02:26]} 13. Bb2 {[%clk 0:02:20]}  O-O {[%clk 0:02:15]} 14. Nd2 {[%clk 0:02:01]}  d5 {[%clk 0:02:15]} 15. Qh5 {[%clk 0:01:43]}  a4 {[%clk 0:02:08]} 16. Rac1 {[%clk 0:01:23]}  Bb4 {[%clk 0:01:34]} 17. Bc3 {[%clk 0:00:55]}  Ba3 {[%clk 0:01:33]} 18. Rcd1 {[%clk 0:00:50]}  axb3 {[%clk 0:01:30]} 19. axb3 {[%clk 0:00:50]}  dxc4 {[%clk 0:01:30]} 20. bxc4 {[%clk 0:00:27]}  Nxc4 {[%clk 0:01:29]} 21. Ne4 {[%clk 0:00:25]}  Qg6 {[%clk 0:01:21]} 22. Qh4 {[%clk 0:00:23]}  Nb2 {[%clk 0:01:15]} 23. Nf6+ {[%clk 0:00:09]}  gxf6 {[%clk 0:01:15]} 24. exf6 {[%clk 0:00:04]}  Bxf1 {[%clk 0:01:09]} 25. Be4 {[%clk 0:00:03]}  Nxd1 {[%clk 0:00:52]} 26. Bxg6 {[%clk 0:00:02]}  fxg6 {[%clk 0:00:53]} 27. Kxf1 {[%clk 0:00:02]}  Nxc3 {[%clk 0:00:53]} 28. Qc4+ {[%clk 0:00:02]}  Nd5 {[%clk 0:00:53]} 29. Qxc6 {[%clk 0:00:01]}  Nxf6 {[%clk 0:00:53]} 0-1


[Site "https://www.chess.com"]